Cogmind - Beta 9.4 @@@ ROGUE MODE // 2020.03.25 @ 16:11:08 Player: PYNTER Result: Destroyed by G-34 Mercenary with Small Laser Performance ------------- Evolutions (1) 500 Regions Visited (3) 600 Robots Destroyed (45) 225 Value Destroyed (1258) 1258 Prototype IDs (0) 0 Alien Tech Used (0) 0 Bonus (0) 0 TOTAL SCORE: 2583 Bonus ------- None Cogmind --------- Core Integrity 0/400 Matter 300/300 Energy 37/100 System Corruption 0% Temperature Cool (60) Movement Flying (40) Location -9/Materials Parts ------- > --- POWER (1) -------- (None) > --- PROPULSION (2) --- Flight Unit > --- UTILITY (4) ------ Visual Processing Unit Seismic Analyzer > --- WEAPON (2) ------- Particle Cannon > --- INVENTORY (4) ---- Aluminum Leg Heat Sink Improved Sensor Array Peak State ------------ > --- POWER ------------ Light Nuclear Core > --- PROPULSION ------- Aluminum Leg Aluminum Leg > --- UTILITY ---------- Heat Sink Heat Sink Improved Heat Sink Light Armor Plating > --- WEAPON ----------- Particle Gun Ripper > --- INVENTORY -------- Ion Engine Medium Laser [Rating: 17] Favorites ----------- Power Ion Engine Engine Ion Engine Power Core Light Nuclear Core Propulsion Aluminum Leg Treads Light Treads Leg Aluminum Leg Wheel Compact Wheel Flight Unit Flight Unit Utility Heat Sink Device Heat Sink Storage Small Storage Unit Processor Visual Processing Unit Protection Weapon Shielding Weapon Medium Laser Energy Gun Medium Laser Energy Cannon Particle Cannon Ballistic Gun Heavy Assault Rifle Slashing Weapon Ripper Build | -11 -10 -10 -9 ------- Run | Scr Mat Min Mat Slots Evolved 2 | . . . 2 Power . | . . . . Propulsion . | . . . . Utility 2 | . . . 2 Weapon . | . . . . Parts Attached 51 | 6 23 6 16 Power 6 | 1 2 2 1 Engine 4 | 1 2 . 1 Core 2 | . . 2 . Reactor . | . . . . Propulsion 18 | 2 8 1 7 Treads 2 | . . . 2 Leg 13 | 2 6 1 4 Wheel 2 | . 2 . . Hover . | . . . . Flight 1 | . . . 1 Utility 14 | 1 7 1 5 Device 7 | . 4 1 2 Storage 2 | 1 1 . . Processor 3 | . 1 . 2 Hackware . | . . . . Protection 2 | . 1 . 1 Artifact . | . . . . Weapon 13 | 2 6 2 3 Energy Gun 5 | 2 1 1 1 Energy Cannon 3 | . 2 . 1 Ballistic Gun 4 | . 3 . 1 Ballistic Cannon . | . . . . Launcher . | . . . . Special Weapon . | . . . . Impact Weapon . | . . . . Slashing Weapon 1 | . . 1 . Piercing Weapon . | . . . . Special Melee Weapon . | . . . . Unidentified Prototypes . | . . . . Parts Lost 18 | . 4 . 14 Power 3 | . 1 . 2 Propulsion 7 | . 2 . 5 Utility 4 | . 1 . 3 Weapon 4 | . . . 4 Highest Loss Streak 5 | . 3 . 5 Average Slot Usage (%) 89 | . 91 99 76 Engine 7 | . 13 6 2 Core 3 | . . 7 2 Treads 3 | . . . 11 Leg 18 | . 21 28 6 Wheel 1 | . 2 . . Device 18 | . 18 17 20 Storage 1 | . 3 . . Processor 4 | . . . 12 Protection 4 | . 2 10 1 Energy Gun 5 | . 9 1 4 Energy Cannon 4 | . 9 . . Ballistic Gun 8 | . 8 13 2 Slashing Weapon 6 | . . 12 9 Naked Turns . | . . . . Heaviest Build 30 | 13 30 13 17 Greatest Support 40 | 20 32 20 40 Greatest Overweight (x) 9 | 1 9 . . Average Overweight (x) . | . . . . Largest Inventory Capacity 10 | 6 10 4 4 Average Capacity 4 | 5 5 4 4 Most Carried 5 | . 5 4 3 Average Carried 1 | . 2 2 1 Final Capacity 6 | 6 4 4 4 Final Carried 4 | . 4 2 3 Class Distribution -------------------- 58% | Mutant 41% | Scavenger-Mutant Dominant Class ---------------- Mutant | -10/Materials Scavenger-Mutant | -10/Mines Scavenger-Mutant | -9/Materials Resources | -11 -10 -10 -9 ----------- Run | Scr Mat Min Mat Matter Collected 857 | 207 396 113 141 Remotely . | . . . . Salvage Created 1630 | . 637 350 643 Parts 89 | . 36 14 39 Haulers Intercepted . | . . . . Recyclers Shooed 1 | . 1 . . Parts Field Recycled . | . . . . Retrieved Matter . | . . . . Parts Self-Destructed . | . . . . Prevented . | . . . . Kills | -11 -10 -10 -9 ------- Run | Scr Mat Min Mat Combat Hostiles Destroyed 40 | . 18 6 16 Melee 15 | . . 3 12 Guns 18 | . 13 3 2 Cannons 7 | . 5 . 2 Classes Destroyed 6 | . 4 1 1 Tunneler 1 | . . 1 . Recycler 2 | . 1 1 . Watcher 2 | . 1 . 1 Swarmer 11 | . 8 . 3 Grunt 26 | . 10 6 10 Sentry 3 | . . . 3 Best Kill Streak 9 | . 9 2 5 Combat Bots Only 9 | . 9 2 5 Max Kills in Single Turn 2 | . 2 1 1 Gunslinging . | . . . . Exploded . | . . . . Melee 1 | . . 1 1 Uniques/NPCs Destroyed . | . . . . Combat | -11 -10 -10 -9 -------- Run | Scr Mat Min Mat Damage Taken 2556 | . 811 229 1516 Core 580 | . 160 13 407 Absorbed by Shields . | . . . . Core Remaining (%) 65 | 100 . 30 . Volleys Fired 95 | . 50 11 34 Largest 2 | . 2 1 1 Hottest 136 | . 136 23 68 Shots Fired 145 | . 100 11 34 Gun 111 | . 74 11 26 Cannon 34 | . 26 . 8 Launcher . | . . . . Special . | . . . . Kinetic 71 | . 49 11 11 Thermal 74 | . 51 . 23 Explosive . | . . . . Electromagnetic . | . . . . Robot Hit Streak 9 | . 7 9 5 Robot Miss Streak 4 | . 3 4 4 Penetration Max . | . . . . Secondary Targets 4 | . 4 . . Max Gunslinging Chain 1 | . 1 . . Shots Hit Robots 117 | . 56 20 41 Core Hits 54 | . 25 10 19 Critical Hits 4 | . . 2 2 Critical Kills 1 | . . . 1 Critical Parts Destroyed 3 | . . 2 1 Melee Attacks 56 | . . 21 35 Impact . | . . . . Slashing 56 | . . 21 35 Piercing . | . . . . Sneak Attacks 2 | . . 1 1 Combat Hostiles . | . . . . Follow-up Attacks . | . . . . Damage Inflicted 2920 | . 961 712 1247 Guns 921 | . 632 130 159 Cannons 474 | . 329 . 145 Explosions . | . . . . Melee 1525 | . . 582 943 Ramming . | . . . . Kinetic 657 | . 492 130 35 Thermal 738 | . 469 . 269 Explosive . | . . . . Electromagnetic . | . . . . Impact . | . . . . Slashing 1525 | . . 582 943 Piercing . | . . . . Highest Corruption . | . . . . Average Corruption . | . . . . Corruption Purged . | . . . . Overload Shots . | . . . . Overflow Damage 114 | . . 49 65 Projectiles . | . . . . Explosions . | . . . . Melee 114 | . . 49 65 Knockbacks . | . . . . Impact . | . . . . Kinetic . | . . . . Secondary . | . . . . Self-Inflicted Damage . | . . . . Shots . | . . . . Rammed . | . . . . Targets Rammed . | . . . . Kicked . | . . . . Crushed . | . . . . Highest Temperature 645 | . 645 . 74 Average Temperature 141 | . 153 . 29 Received Heat Transfer 1023 | . 300 132 591 Effects 10 | . 10 . . Shutdowns 2 | . 2 . . Energy Bleed 2 | . 2 . . Matter Decay 2 | . 2 . . Short Circuit 1 | . 1 . . Damage (minor) 2 | . 2 . . Damage (core) 1 | . 1 . . Siege Activations . | . . . . Robots Corrupted . | . . . . Combat Hostiles . | . . . . Parts Fried . | . . . . Impact Corruptions . | . . . . Robots Melted . | . . . . Combat Hostiles . | . . . . Parts Melted 5 | . 4 . 1 Heat Transferred 1554 | . 999 . 555 Parts Sabotaged . | . . . . Parts Stolen . | . . . . Parts Stripped . | . . . . Power Chain Reactions . | . . . . Missiles Intercepted . | . . . . Alert | -11 -10 -10 -9 ------- Run | Scr Mat Min Mat Peak Influence 314 | . 314 247 293 Average Influence 83 | . 97 124 158 Maximum Alert Level 1 | . 1 1 1 Low Security (%) 85 | 100 86 89 59 Level 1 14 | . 13 10 41 Level 2 . | . . . . Level 3 . | . . . . Level 4 . | . . . . Level 5 . | . . . . High Security . | . . . . Max Security . | . . . . Squads Dispatched 9 | . 4 . 5 Investigation 2 | . 1 . 1 Extermination . | . . . . Reinforcement 7 | . 3 . 4 Assault . | . . . . Garrison . | . . . . Intercept . | . . . . Construction Impeded . | . . . . Haulers Reinforced . | . . . . Stealth | -11 -10 -10 -9 --------- Run | Scr Mat Min Mat Distress Signals 5 | . 3 . 2 Communications Jammed . | . . . . Distress Signals . | . . . . Times Spotted 72 | . 32 7 33 Peak Tracking Total 9 | . 9 4 5 Tactical Retreats 5 | . 2 1 2 Traps | -11 -10 -10 -9 ------- Run | Scr Mat Min Mat Traps Triggered . | . . . . Indirectly . | . . . . Trap Hack Attempts . | . . . . Triggered . | . . . . Disarmed . | . . . . Reprogrammed . | . . . . Reused . | . . . . Traps Extracted . | . . . . Installed . | . . . . Triggered . | . . . . Machines | -11 -10 -10 -9 ---------- Run | Scr Mat Min Mat Machines Disabled . | . . . . Max in Single Turn . | . . . . Machines Sabotaged . | . . . . Garrisons Compromised . | . . . . Overloaded Fab Kills . | . . . . Fab Network Shutdowns . | . . . . Hacking | -11 -10 -10 -9 --------- Run | Scr Mat Min Mat Machines Accessed 4 | . 3 . 1 Terminals 2 | . 2 . . Fabricators . | . . . . Repair Stations . | . . . . Recycling Units 2 | . 1 . 1 Scanalyzers . | . . . . Garrison Access . | . . . . Total Hacks 12 | . 7 . 5 Successful 9 | . 5 . 4 Failed 3 | . 2 . 1 Catastrophic 1 | . 1 . . Database Lockouts . | . . . . Manual 1 | . 1 . . Terminals 5 | . 5 . . Fabricators . | . . . . Repair Stations . | . . . . Recycling Units 7 | . 2 . 5 Scanalyzers . | . . . . Garrison Access . | . . . . Terminal Hacks 5 | . 5 . . Record 3 | . 3 . . Alert Level 1 | . 1 . . Locate Traps 1 | . 1 . . Fabricator Hacks . | . . . . Repair Station Hacks . | . . . . Recycling Unit Hacks 4 | . . . 4 Recycle Component 2 | . . . 2 Process 1 | . . . 1 Retrieve Components 1 | . . . 1 Scanalyzer . | . . . . Garrison Access Hacks . | . . . . Unauthorized Hacks . | . . . . Terminals . | . . . . Fabricators . | . . . . Repair Stations . | . . . . Recycling Units . | . . . . Scanalyzers . | . . . . Garrison Access . | . . . . Data Cores Recovered . | . . . . Used . | . . . . Hacking Detections 3 | . 2 . 1 Full Trace Events 2 | . 1 . 1 Feedback Events . | . . . . Feedback Blocked . | . . . . Robot Schematics Acquired . | . . . . Robots Built . | . . . . Matter . | . . . . Time . | . . . . Total Robot Build Rating . | . . . . Part Schematics Acquired . | . . . . Parts Built . | . . . . Matter . | . . . . Time . | . . . . Total Part Build Rating . | . . . . Parts Repaired . | . . . . Time . | . . . . Parts Recycled 2 | . . . 2 Recycled Matter 29 | . . . 29 Retrieved Matter . | . . . . Retrieved Components . | . . . . Parts Scanalyzed . | . . . . Part Schematics Acquired . | . . . . Parts Damaged . | . . . . Bothacking | -11 -10 -10 -9 ------------ Run | Scr Mat Min Mat Used RIF Installer . | . . . . Robots Hacked . | . . . . Non-combat . | . . . . Combat . | . . . . Robot Hacks Applied . | . . . . Relay Couplers Released . | . . . . Robots Rewired . | . . . . Allies Hacked . | . . . . Hacks Repelled . | . . . . Allies | -11 -10 -10 -9 -------- Run | Scr Mat Min Mat Total Allies . | . . . . Largest Group . | . . . . Highest-Rated Group . | . . . . Highest-Rated Ally . | . . . . Total Orders . | . . . . Ally Attacks . | . . . . Total Damage . | . . . . Kills . | . . . . Allies Corrupted . | . . . . Allies Melted . | . . . . Intel | -11 -10 -10 -9 ------- Run | Scr Mat Min Mat Robot Analysis Total . | . . . . Derelict Logs Recovered 2 | . . 2 . Drone Launches . | . . . . Drone Recoveries . | . . . . Exploration | -11 -10 -10 -9 ------------- Run | Scr Mat Min Mat Turns Passed 2872 | 948 729 595 600 Spaces Moved 1324 | 247 393 402 282 Core 26 | 5 14 . 7 Treads 119 | . . . 119 Legs 1067 | 242 332 402 91 Wheels 47 | . 47 . . Hover . | . . . . Flight 65 | . . . 65 Fastest Speed 40 | 50 100 120 40 Average Speed 120 | 119 123 120 116 Slowest Speed 500 | 120 500 120 160 Overloaded Moves . | . . . . Propulsion Burnouts . | . . . . Robots Hopped . | . . . . Cave-ins Triggered . | . . . . Exploration Rate (%) 40 | 22 56 61 21 Regions Visited 3 Branch Regions 1 Pre-discovered Areas 1 | . . 1 . Known Exits Taken . | . . . . Unknown Exits Taken 3 | 1 1 1 . Scrap Searched 2 | . . 2 . Spaces Dug . | . . . . Terrain Destroyed . | . . . . Melee . | . . . . Projectile . | . . . . AOE . | . . . . Actions | -11 -10 -10 -9 --------- Run | Scr Mat Min Mat Total 2374 | 897 538 475 464 Wait 806 | 645 49 22 90 Move 1321 | 246 392 401 282 Hop . | . . . . Pick Up 4 | . 2 2 . Fast Attach 44 | 6 18 4 16 Attach 6 | . 5 1 . Detach 21 | . 13 3 5 Swap 1 | . . 1 . Drop 20 | . 9 9 2 Fire 95 | . 50 11 34 Melee 56 | . . 21 35 Ram . | . . . . Kick . | . . . . Crush . | . . . . Escape Stasis . | . . . . Rewire . | . . . . Trap . | . . . . Miscellaneous . | . . . . Route ------- -11/Scrapyard -10/Materials (discovered 4 exits: *Mat x2 / [*Min x2]) -10/Mines (discovered 2 exits: *Mat x2) -9/Materials History --------- Turn | Location | Event 16 | -11/Scrapyard | Discovered new exit (range 15) 949 | -11/Scrapyard | Entered Materials 950 | -10/Materials | Build established: Mutant 1121 | -10/Materials | Discovered new exit (range 16) 1344 | -10/Materials | Discovered new exit (range 16) 1576 | -10/Materials | Core integrity fell below 50% 1638 | -10/Materials | Destroyed 9 combat bots 1647 | -10/Materials | Lost 3 parts (1p1n1u) 1651 | -10/Materials | Discovered new exit (range 12) 1651 | -10/Materials | Discovered new exit (range 11) 1678 | -10/Materials | Entered Mines 1682 | -10/Mines | Learned Materials security intel 1698 | -10/Mines | Discovered new exit (range 11) 1720 | -10/Mines | Learned location of Mines (-9) 1752 | -10/Mines | A weapon hastily lodged in a ceiling crevice suddenly fell to the ground 1913 | -10/Mines | Build established: Scavenger-Mutant 2187 | -10/Mines | Discovered new exit (range 6) 2273 | -10/Mines | Entered Materials 2273 | -9/Materials | Evolved 2 slots: Utility x2 2439 | -9/Materials | Lost 5 parts (1p2n1u1w) 2593 | -9/Materials | Core integrity fell below 50% 2827 | -9/Materials | Core integrity fell below 20% 2857 | -9/Materials | Lost 5 parts (2n1u2w) 2873 | -9/Materials | Destroyed by G-34 Mercenary with Small Laser Last Messages --------------- R-06 Scavenger collects Heat Sink. R-06 Scavenger collects Aluminum Leg. K-01 Serf cleans the Terminal. O-16 Technician: "IFF HANDSHAKE FAILED. SECURING TERMINAL." Ripper destroyed. O-16 Technician: "IFF HANDSHAKE FAILED. SECURING TERMINAL." ALERT: Hostiles spotted, dispatching reinforcements to Terminal M004. Lgt. Treads destroyed. Heat Sink destroyed. ALERT: Hostiles spotted, dispatching reinforcements to Terminal M007. Lgt. Ion Engine melted. S-10 Pest destroyed. Acquired Flight Unit. Lgt. Assault Rifle destroyed. Acquired Particle Cannon. Y-45 Defender destroyed. K-01 Serf cleans the Terminal. Acquired 22 matter. K-01 Serf cleans the Terminal. G-34 Mercenary destroyed. Map ----- +----------------------------------------------------+ | | | ??????????????????????#############??????????????? | | ??????????????????????# #??????????????? | | ??????????????????????# #??????????????? | | ??????????????????????# #??????????????? | | ???????????????######## #??????????????? | | ???????????????# + #??????????????? | | ???????????????# ### #??????????????? | | ???????????????# #?# #??????????????? | | ???????????????# #?######+##########??????????? | | ???????????????# #????# # #??????????? | | ???????????????# ###### # #??????????? | | ???????????????# + """ #??????????? | | ???????????????# ###### # """ #??????????? | | ??????##########% #????# # """ #??????????? | | ??????# #????### ###? #??????????? | | ??????# ##+#####??# #???######??????????? | | ??????# # =%[ #?##+#####???????????????? | | ??????# + *"" ### #???????????????? | | ??????# # T" + + #???????????????? | | ####### # "" # # ""#???????????????? | | ^ ^ + # # T"#???????????????? | | ^ ########## # + ""#???????????????? | | """" ! #????????######## # #???????????????? | | """" !#???????????????# ########???????????????? | | """" #???? #?????????#@#??????????????????????? | | % # ""#?????????#%#??????????????????????? | | %% / ""#?????????#*#??????????????????????? | | ######### """#?????????#a ??????????????????????? | | ????????? "" #?????????+ ??????????????????????? | | ?????????? """#?????????# ??????????????????????? | | ?????????? """#?????????# ??????????????????????? | | ???????????"""#?????????#g ?????????????????????? | | ????????????" ??????????# g?????????????????????? | | ???????????? ?#?????????#u ?????????????????????? | | ????????????????????????? g ?????????????????????? | | ????????????????????????? g#????????????????????? | | ????????????????????????? #????????????????????? | | ????????????????????????? #????????????????????? | | ????????????????????????? #????????????????????? | | ????????????????????????? #????????????????????? | | ????????????????????????? ?????????????????????? | | ????????????????????????? ?????????????????????? | | ?????????????????????????????????????????????????? | | ?????????????????????????????????????????????????? | | ?????????????????????????????????????????????????? | | ?????????????????????????????????????????????????? | | ?????????????????????????????????????????????????? | | ?????????????????????????????????????????????????? | | ?????????????????????????????????????????????????? | +----------------------------------------------------+ Best States ------------- Heat Dissipation 62 Energy Generation 14 Energy Capacity 265 Matter Stores 300 Matter Capacity 300 Sight Range 18 Robot Scan Range 13 Terrain Scan Range 14 Terrain Scan Density 60 Armor Coverage 150 Weapon Shielding 33 Evasion (%) 62 Recoil Reduction 2 Item Schematics ----------------- None Robot Schematics ------------------ None Fabricated ------------ Nothing Alien Tech Used ----------------- None Achievements -------------- None Challenges ------------ None Game ------ Seed dog Manual? 1 Play Time 00:23:28 Cumulative 3.9 hours Start 2020.03.25 @ 15:47:56 End 2020.03.25 @ 16:11:08 Sessions 1 Manual Loads 0 Difficulty Rogue Special Mode None Game No. 6 Rogue 6 Adventurer 0 Explorer 0 Win Type - Total 0 Types 0/0/0/0/0/0/0 Lore% 12 Gallery% 11 Achievement% 9 Wizard Run 0 Options --------- ASCII 0 Keyboard 1 Movement Numpad Keybinds 0 Fullscreen 1 Font 18/TerminusBold Map View 76x50 Tactical HUD 0 Map Filters NONE Filters NONE Steam 1 RUN: e715eb04-f376-4465-9cee-0eab28d1150c